{"text_format":"1","workbook":"xlsx","n_sheets":2,"sheets":["Feuil1","Référentiel"],"not_rendered":{"charts":0,"images":6,"macros":1,"external_links":0,"defined_names":108,"comments":0,"pivot_tables":0},"unopened":[],"bounds":{"document_bytes":16777216,"sheet_cells":100000,"rows_first":2000,"rows_last":500,"rows_between":2000,"halvings":0,"cell_chars":16384,"cell_head_chars":4096},"cells_cut":0,"cells_raw":0,"read":"whole","date_system":"1900"}

{"sheet":"Feuil1","index":0,"n_rows":38,"n_cols":21,"rows_kept":38,"cut":false,"hidden":false,"merged":[]}
[null,null,"Fiche évaluation DNB",null,null,null,"APSA:","Lutte"]
[null,"Classe/Groupe",null,null,null,null,"Professeur:",null,null,null,null,null,null,null,null,null,null,null,null,null,"C:\\Users\\GERARD HOLDER EPS\\Documents\\fiches compatibles pack EPS\\Nouveau dossier\\macros2"]
[null,null,null,null,null,null,null,null,null,null,null,null,null,null,null,null,null,null,null,null,"C:\\Users\\GERARD HOLDER EPS\\Documents\\fiches compatibles pack EPS\\Nouveau dossier\\macros2\\Fiche évaluation DNB Lutte  .pdf"]
[]
[null,"Nom- Prénom","Sexe","Classe","Note","Efficacité dans le gain du combat /6 points","Gain du combat /2pts","Efficacité du combattant dans ses formes d'attaques /8 pts","Efficacité dans les rôles d'arbitre, de juge, d'observateur et de conseiller /4 pts",null,"Points marqué de manière stéréotypée",null,0,null,"Combattant ne prenantpas en compte l'adversaire",null,null,null,"Rôles insuffisamment assurés"]
[1,null,null,null,{"$f":"IF(F6=\"\",\"\",F6+G6+H6+I6)","v":""},null,null,null,null,null,0,null,0.5,null,0,null,null,null,0]
[2,null,null,null,{"$f":"IF(F7=\"\",\"\",F7+G7+H7+I7)","v":""},null,null,null,null,null,0.5,null,1,null,0.5,null,null,null,0.5]
[3,null,null,null,"",null,null,null,null,null,1,null,1.5,null,1,null,null,null,1]
[4,null,null,null,"",null,null,null,null,null,1.5,null,2,null,1.5,null,null,null,1.5]
[5,null,null,null,"",null,null,null,null,null,2,null,null,null,2,null,null,null,"Rôles assumés"]
[6,null,null,null,"",null,null,null,null,null,2.5,null,null,null,2.5,null,null,null,2]
[7,null,null,null,"",null,null,null,null,null,"Points marqués sur attaques variées",null,null,null,3,null,null,null,2.5]
[8,null,null,null,"",null,null,null,null,null,3,null,null,null,3.5,null,null,null,3]
[9,null,null,null,"",null,null,null,null,null,3.5,null,null,null,"Combattant opportuniste, variant ses atttaques",null,null,null,"Rôles multiples assurés"]
[10,null,null,null,"",null,null,null,null,null,4,null,null,null,4,null,null,null,3.5]
[11,null,null,null,"",null,null,null,null,null,4.5,null,null,null,4.5,null,null,null,4]
[12,null,null,null,"",null,null,null,null,null,"Points marqués sur toutes les opportunités",null,null,null,5]
[13,null,null,null,"",null,null,null,null,null,5,null,null,null,5.5]
[14,null,null,null,"",null,null,null,null,null,5.5,null,null,null,6]
[15,null,null,null,"",null,null,null,null,null,6,null,null,null,"Combattant adaptant ses attaques à l'évolution du rapport de force"]
[16,null,null,null,"",null,null,null,null,null,null,null,null,null,6.5]
[17,null,null,null,"",null,null,null,null,null,null,null,null,null,7]
[18,null,null,null,"",null,null,null,null,null,null,null,null,null,7.5]
[19,null,null,null,"",null,null,null,null,null,null,null,null,null,8,null,"Rôles insuffisamment assurés"]
[20,null,null,null,"",null,null,null,null,null,null,null,null,null,null,null,0]
[21,null,null,null,"",null,null,null,null,null,null,null,null,null,null,null,0.5]
[22,null,null,null,"",null,null,null,null,null,null,null,null,null,null,null,1]
[23,null,null,null,"",null,null,null,null,null,null,null,null,null,null,null,1.5]
[24,null,null,null,"",null,null,null,null,null,null,null,null,null,null,null,"Rôles assumés"]
[25,null,null,null,"",null,null,null,null,null,null,null,null,null,null,null,2]
[26,null,null,null,"",null,null,null,null,null,null,null,null,null,null,null,2.5]
[27,null,null,null,"",null,null,null,null,null,null,null,null,null,null,null,3]
[28,null,null,null,"",null,null,null,null,null,null,null,null,null,null,null,"Rôles multiples assurés"]
[29,null,null,null,"",null,null,null,null,null,null,null,null,null,null,null,3.5]
[30,null,null,null,"",null,null,null,null,null,null,null,null,null,null,null,4]
[null,null,null,"Moyenne générale",{"$f":"IF(E6=\"\",\"\",AVERAGE($E$6:$E$35))","v":""}]
[null,null,null,"Moyenne filles",{"$f":"IF(E6=\"\",\"\",IF(C6=\"\",\"\",AVERAGEIF($C$6:$C$35,\"F\",$E$6:$E$35)))","v":""}]
[null,null,null,"Moyenne garçons",{"$f":"IF(E6=\"\",\"\",IF(C6=\"\",\"\",AVERAGEIF($C$6:$C$35,\"M\",$E$6:$E$35)))","v":""}]

{"sheet":"Référentiel","index":1,"n_rows":0,"n_cols":0,"rows_kept":0,"cut":false,"hidden":false,"merged":[]}